fUSD/lending_fUSD_20240317
["ID","MTS","AMOUNT","RATE_DAILY","PERIOD"]
[319407446,1710718249013,-992.77354783,0.00026899,2]
[319407447,1710718249024,-152.37,0.000269,2]
[319407448,1710718249034,-152.37,0.000269,2]
[319407449,1710718249045,-152.37,0.000269,2]
[319407450,1710718249058,-152.37,0.000269,2]
[319407451,1710718249068,-152.37,0.000269,2]
[319407452,1710718249079,-152.37,0.000269,2]
[319407453,1710718249089,-152.37,0.000269,2]
[319407454,1710718249101,-152.37,0.000269,2]
[319407455,1710718249112,-152.37,0.000269,2]
[319407456,1710718249122,-9183.96,0.000269,2]
[319407457,1710718249133,-9183.96,0.000269,2]
[319407458,1710718249143,-9183.96,0.000269,2]
[319407459,1710718249153,-9183.96,0.000269,2]
[319407460,1710718249163,-9183.96,0.000269,2]
[319407461,1710718249175,-9183.96,0.000269,2]
[319407462,1710718249186,-9183.96,0.000269,2]
[319407463,1710718249196,-9183.96,0.000269,2]
[319407464,1710718249206,-9183.96,0.000269,2]
[319407465,1710718249216,-9183.96,0.000269,2]
[319407466,1710718249227,-9183.96,0.000269,2]
[319407467,1710718249238,-9183.96,0.000269,2]
[319407468,1710718249248,-9183.96,0.000269,2]
[319407469,1710718249259,-9183.96,0.000269,2]
[319407470,1710718249270,-9183.96,0.000269,2]
[319407471,1710718249281,-9183.96,0.000269,2]
[319407472,1710718249291,-9183.96,0.000269,2]
[319407473,1710718249302,-9183.96,0.000269,2]
[319407474,1710718249312,-9183.96,0.000269,2]
[319407475,1710718249323,-9183.96,0.000269,2]
[319407476,1710718249334,-400.0,0.0002697,2]
[319407477,1710718249345,-484.14979326,0.0002697,2]
[319407478,1710718249355,-10000.0,0.00027,2]
[319407479,1710718249366,-167.63496442,0.00027,2]
[319407480,1710718249376,-1850.0,0.00027,3]
[319407481,1710718249387,-9304.43898529,0.00027,10]
[319407482,1710718249397,-150.0,0.00027053,2]
[319407483,1710718249408,-3410.56,0.00027123,2]
[319407484,1710718249418,-150.0,0.00027253,2]
[319407485,1710718249429,-160.574908,0.00027265,2]
[319407486,1710718249439,-220.730155,0.00027265,2]
[319407487,1710718249450,-180.703076,0.00027265,2]
[319407488,1710718249460,-180.545223,0.00027265,2]
[319407489,1710718249470,-175.613704,0.00027265,2]
[319407490,1710718249481,-174.469426,0.00027265,2]
[319407491,1710718249491,-176.403666,0.00027265,2]
[319407492,1710718249501,-167.577501,0.00027265,2]
[319407493,1710718249511,-190.831224,0.00027265,2]
[319407494,1710718249521,-275.912698,0.00027265,2]
[319407495,1710718249531,-154.06087022,0.00027266,2]
[319407496,1710718249542,-1533.01337417,0.00027333,2]
[319407497,1710718249554,-650.68,0.00027396,2]
[319407498,1710718249564,-650.68,0.00027396,2]
[319407499,1710718249574,-650.68,0.00027396,2]
[319407500,1710718249584,-650.68,0.00027396,2]
[319407501,1710718249596,-650.68,0.00027396,2]
[319407502,1710718249607,-2002.75,0.00027396,2]
[319407503,1710718249618,-2002.75,0.00027396,2]
[319407504,1710718249629,-2002.75,0.00027396,2]
[319407505,1710718249639,-2002.75,0.00027396,2]
[319407506,1710718249649,-2002.75,0.00027396,2]
[319407507,1710718249660,-1036.24,0.00027396,2]
[319407508,1710718249670,-1036.24,0.00027396,2]
[319407509,1710718249680,-1036.24,0.00027396,2]
[319407510,1710718249691,-1036.24,0.00027396,2]
[319407511,1710718249701,-1036.36,0.00027396,2]
[319407512,1710718249711,-4236.81,0.00027396,2]
[319407513,1710718249721,-4236.81,0.00027396,2]
[319407514,1710718249731,-4236.81,0.00027396,2]
[319407515,1710718249742,-4236.81,0.00027396,2]
[319407516,1710718249752,-4236.9,0.00027396,2]
[319407517,1710718249762,-300.0,0.00027397,5]
[319407518,1710718249772,-150.0,0.00027397,2]
[319407519,1710718249783,-500.0,0.00027397,2]
[319407520,1710718249793,-500.0,0.00027397,2]
[319407521,1710718249805,-500.0,0.00027397,2]
[319407522,1710718249815,-500.0,0.00027397,2]
[319407523,1710718249825,-500.0,0.00027397,2]
[319407524,1710718249836,-500.0,0.00027397,2]
[319407525,1710718249846,-500.0,0.00027397,2]
[319407526,1710718249857,-500.0,0.00027397,2]
[319407527,1710718249867,-500.0,0.00027397,2]
[319407528,1710718249877,-500.0,0.00027397,2]
[319407529,1710718249888,-500.0,0.00027397,2]
[319407530,1710718249898,-504.87676864,0.00027397,2]
[319407531,1710718249908,-554.89061024,0.00027397,30]
[319407532,1710718249919,-680.52216483,0.00027397,30]
[319407533,1710718249931,-1107.1575,0.00027397,2]
[319407534,1710718249942,-754.32224713,0.00027397,2]
[319407535,1710718249953,-510.0,0.00027397,120]
[319407536,1710718249963,-500.0,0.00027397,2]
[319407537,1710718249974,-500.0,0.00027397,2]
[319407538,1710718249985,-500.0,0.00027397,2]
[319407539,1710718249996,-500.0,0.00027397,2]
[319407540,1710718250006,-500.0,0.00027397,2]
[319407541,1710718250017,-500.0,0.00027397,2]
[319407542,1710718250028,-500.0,0.00027397,2]
[319407543,1710718250038,-500.0,0.00027397,2]
[319407544,1710718250049,-500.0,0.00027397,2]
[319407545,1710718250060,-500.0,0.00027397,2]
[319407546,1710718250070,-500.0,0.00027397,2]
[319407547,1710718250080,-500.0,0.00027397,2]
[319407548,1710718250090,-500.0,0.00027397,2]
[319407549,1710718250101,-500.0,0.00027397,2]
[319407550,1710718250111,-500.0,0.00027397,2]
[319407551,1710718250122,-500.0,0.00027397,2]
[319407552,1710718250133,-500.0,0.00027397,2]
[319407553,1710718250143,-500.0,0.00027397,2]
[319407554,1710718250154,-500.0,0.00027397,2]
[319407555,1710718250164,-500.0,0.00027397,2]
[319407556,1710718250174,-500.0,0.00027397,2]
[319407557,1710718250184,-500.0,0.00027397,2]
[319407558,1710718250195,-500.0,0.00027397,2]
[319407559,1710718250205,-500.0,0.00027397,2]
[319407560,1710718250215,-500.0,0.00027397,2]
[319407561,1710718250226,-500.0,0.00027397,2]
[319407562,1710718250237,-500.0,0.00027397,2]
[319407563,1710718250247,-500.0,0.00027397,2]
[319407564,1710718250258,-500.0,0.00027397,2]
[319407565,1710718250268,-500.0,0.00027397,2]
[319407566,1710718250279,-500.0,0.00027397,2]
[319407567,1710718250290,-500.0,0.00027397,2]
[319407568,1710718250301,-703.0,0.00027397,2]
[319407569,1710718250313,-351.40617785,0.00027397,2]
[319407570,1710718250324,-1000.0,0.00027397,2]
[319407571,1710718250334,-1000.0,0.00027397,2]
[319407572,1710718250344,-1000.0,0.00027397,2]
[319407573,1710718250354,-1000.0,0.00027397,2]
[319407574,1710718250363,-1000.0,0.00027397,2]
[319407575,1710718250374,-1000.0,0.00027397,2]
[319407576,1710718250384,-1000.0,0.00027397,2]
[319407577,1710718250394,-1000.0,0.00027397,2]
[319407578,1710718250404,-1000.0,0.00027397,2]
[319407579,1710718250415,-1000.0,0.00027397,2]
[319407580,1710718250659,-1000.0,0.00027397,2]
[319407581,1710718250673,-1000.0,0.00027397,2]
[319407582,1710718250684,-1000.0,0.00027397,2]
[319407583,1710718250694,-1000.0,0.00027397,2]
[319407584,1710718250703,-1000.0,0.00027397,2]
[319407585,1710718250713,-1000.0,0.00027397,2]
[319407586,1710718250722,-1000.0,0.00027397,2]
[319407587,1710718250732,-1000.0,0.00027397,2]
[319407588,1710718250741,-1000.0,0.00027397,2]
[319407589,1710718250750,-1000.0,0.00027397,2]
[319407590,1710718250760,-1000.0,0.00027397,2]
[319407591,1710718250769,-1000.0,0.00027397,2]
[319407592,1710718250779,-1000.0,0.00027397,2]
[319407593,1710718250788,-1000.0,0.00027397,2]
[319407594,1710718250798,-1000.0,0.00027397,2]
[319407595,1710718250810,-1000.0,0.00027397,2]
[319407596,1710718250819,-1000.0,0.00027397,2]
[319407597,1710718250830,-1000.0,0.00027397,2]
[319407598,1710718250840,-941.0,0.00027397,2]
[319407599,1710718250850,-24000.0,0.00027397,2]
[319407600,1710718250860,-2540.0,0.00027397,10]
[319407601,1710718250870,-79390.66,0.00027397,2]
[319407602,1710718250880,-15683.49,0.00027397,2]
[319407603,1710718250891,-155.0,0.00027398,2]
[319407604,1710718250900,-150.0,0.000274,2]
[319407605,1710718250910,-6182.91815563,0.000274,2]
[319407606,1710718250919,-7809.0,0.000274,2]
[319407607,1710718250930,-5779.0,0.000274,2]
[319407608,1710718250939,-1000.0,0.000274,2]
[319407609,1710718250949,-2000.0,0.000274,2]
[319407610,1710718250959,-311.0,0.000274,2]
[319407611,1710718250969,-732.0,0.000274,2]
[319407612,1710718250979,-2000.0,0.000274,2]
[319407613,1710718250988,-1533.01337417,0.00027445,2]
[319407614,1710718250998,-480.38,0.00027513,2]
[319407615,1710718251008,-457.0,0.0002752,2]
[319407616,1710718251017,-1227.0,0.0002752,2]
[319407617,1710718251026,-1044.0,0.0002752,2]
[319407618,1710718251036,-500.0,0.000276,14]
[319407619,1710718251045,-500.0,0.000276,14]
[319407620,1710718251057,-500.0,0.000276,14]
[319407621,1710718251066,-500.0,0.000276,14]
[319407622,1710718251076,-500.0,0.000276,14]
[319407623,1710718251085,-500.0,0.000276,14]
[319407624,1710718251094,-500.0,0.000276,14]
[319407625,1710718251103,-500.0,0.000276,14]
[319407626,1710718251113,-500.0,0.000276,14]
[319407627,1710718251122,-500.0,0.000276,14]
[319407628,1710718251131,-500.0,0.000276,14]
[319407629,1710718251140,-500.0,0.000276,14]
[319407630,1710718251149,-500.0,0.000276,14]
[319407631,1710718251157,-500.0,0.000276,14]
[319407632,1710718251166,-500.0,0.000276,14]
[319407633,1710718251175,-500.0,0.000276,14]
[319407634,1710718251184,-500.0,0.000276,14]
[319407635,1710718251193,-500.0,0.000276,14]
[319407636,1710718251202,-500.0,0.000276,14]
[319407637,1710718251212,-500.0,0.000276,14]
[319407638,1710718251221,-500.0,0.000276,14]
[319407639,1710718251230,-500.0,0.000276,14]
[319407640,1710718251240,-500.0,0.000276,14]
[319407641,1710718251250,-500.0,0.000276,14]
[319407642,1710718251259,-500.0,0.000276,14]
[319407643,1710718251269,-500.0,0.000276,14]
[319407644,1710718251278,-500.0,0.000276,14]
[319407645,1710718251288,-500.0,0.000276,14]
[319407646,1710718251297,-500.0,0.000276,14]
[319407647,1710718251307,-500.0,0.000276,14]
[319407648,1710718251316,-500.0,0.000276,14]
[319407649,1710718251325,-500.0,0.000276,14]
[319407650,1710718251335,-500.0,0.000276,14]
[319407651,1710718251344,-500.0,0.000276,14]
[319407652,1710718251354,-500.0,0.000276,14]
[319407653,1710718251363,-500.0,0.000276,14]
[319407654,1710718251373,-500.0,0.000276,14]
[319407655,1710718251382,-973.0,0.000276,14]
[319407656,1710718251392,-500.0,0.000276,14]
[319407657,1710718251401,-500.0,0.000276,14]
[319407658,1710718251410,-500.0,0.000276,14]
[319407659,1710718251420,-500.0,0.000276,14]
[319407660,1710718251429,-500.0,0.000276,14]
[319407661,1710718251438,-500.0,0.000276,14]
[319407662,1710718251447,-500.0,0.000276,14]
[319407663,1710718251457,-500.0,0.000276,14]
[319407664,1710718251466,-500.0,0.000276,14]
[319407665,1710718251475,-500.0,0.000276,14]
[319407666,1710718251485,-500.0,0.000276,14]
[319407667,1710718251493,-500.0,0.000276,14]
[319407668,1710718251503,-500.0,0.000276,14]
[319407669,1710718251512,-500.0,0.000276,14]
[319407670,1710718251521,-500.0,0.000276,14]
[319407671,1710718251530,-500.0,0.000276,14]
[319407672,1710718251539,-500.0,0.000276,14]
[319407673,1710718251549,-500.0,0.000276,14]
[319407674,1710718251561,-624.0,0.000276,14]
[319407675,1710718251570,-152.37,0.000276,2]
[319407676,1710718251579,-152.37,0.000276,2]
[319407677,1710718251589,-152.37,0.000276,2]
[319407678,1710718251600,-152.37,0.000276,2]
[319407679,1710718251610,-152.37,0.000276,2]
[319407680,1710718251619,-152.37,0.000276,2]
[319407681,1710718251629,-152.37,0.000276,2]
[319407682,1710718251639,-152.37,0.000276,2]
[319407683,1710718251648,-152.37,0.000276,2]
[319407684,1710718251664,-152.37,0.000276,2]
[319407685,1710718251678,-152.37,0.000276,2]
[319407686,1710718251688,-152.37,0.000276,2]
[319407687,1710718251698,-152.37,0.000276,2]
[319407688,1710718251707,-152.37,0.000276,2]
[319407689,1710718251717,-152.37,0.000276,2]
[319407690,1710718251727,-152.37,0.000276,2]
[319407691,1710718251736,-152.37,0.000276,2]
[319407692,1710718251746,-152.37,0.000276,2]
[319407693,1710718251755,-160.574908,0.00027606,2]
[319407694,1710718251766,-154.06087023,0.00027657,2]
[319407695,1710718251777,-510.0,0.00027671,120]
[319407696,1710718251786,-1272.15,0.00027699,2]
[319407697,1710718251798,-500.0,0.00027699,2]
[319407698,1710718251809,-699.21,0.00027699,2]
[319407699,1710718251818,-1021.84,0.00027699,2]
[319407700,1710718251827,-125611.56379347,0.000277,30]
[319407701,1710718251838,-150.0,0.00027758,2]
[319407702,1710718251848,-151.0,0.00027775,2]
[319407703,1710718251857,-1361.075088,0.000278,2]
[319407704,1710718251866,-2584.855624,0.000278,2]
[319407705,1710718251876,-850.67193,0.000278,2]
[319407706,1710718251886,-1190.940703,0.000278,2]
[319407707,1710718251895,-1533.01337417,0.0002787,2]
[319407708,1710718251905,-300.0,0.00027945,5]
[319407709,1710718251915,-150.0,0.00027945,2]
[319407710,1710718251925,-510.0,0.00027945,120]
[319407711,1710718251934,-152.438655,0.00027945,14]
[319407712,1710718251944,-1000.0,0.00027945,2]
[319407713,1710718251953,-160.574908,0.00027946,2]
[319407714,1710718251962,-686.0,0.00027978,2]
[319407715,1710718251972,-686.0,0.00027978,2]
[319407716,1710718251982,-686.0,0.00027978,2]
[319407717,1710718251991,-155.0,0.00028,2]
[319407718,1710718252000,-1698.44699853,0.00028,30]
[319407719,1710718252010,-24403.81819403,0.00028,2]
[319407720,1710718252019,-1000.52,0.00028,2]
[319407721,1710718252029,-1000.52,0.00028,2]
[319407722,1710718252040,-500.0,0.00028,120]
[319407723,1710718252050,-488.07636388,0.00028,2]
[319407724,1710718252061,-309.82,0.0002805,2]
[319407725,1710718252070,-150.0,0.00028053,2]
[319407726,1710718252079,-151.08790136,0.00028086,2]
[319407727,1710718252089,-1533.01337417,0.00028141,2]
[319407728,1710718252098,-154.11102108,0.00028159,2]
[319407729,1710718252109,-510.0,0.00028219,120]
[319407730,1710718252120,-150.0,0.00028262,2]
[319407731,1710718252130,-160.574908,0.00028287,2]
[319407732,1710718252139,-1533.01337417,0.00028291,2]
[319407733,1710718252148,-152.37,0.000284,2]
[319407734,1710718252158,-152.37,0.000284,2]
[319407735,1710718252167,-152.37,0.000284,2]
[319407736,1710718252177,-152.37,0.000284,2]
[319407737,1710718252187,-152.37,0.000284,2]
[319407738,1710718252196,-152.37,0.000284,2]
[319407739,1710718252206,-152.37,0.000284,2]
[319407740,1710718252215,-152.37,0.000284,2]
[319407741,1710718252225,-152.37,0.000284,2]
[319407742,1710718252235,-152.37,0.000284,2]
[319407743,1710718252245,-152.37,0.000284,2]
[319407744,1710718252254,-152.37,0.000284,2]
[319407745,1710718252265,-152.37,0.000284,2]
[319407746,1710718252274,-152.37,0.000284,2]
[319407747,1710718252284,-152.37,0.000284,2]
[319407748,1710718252295,-152.37,0.000284,2]
[319407749,1710718252308,-152.37,0.000284,2]
[319407750,1710718252318,-152.37,0.000284,2]
[319407751,1710718252329,-154.12575019,0.00028403,2]
[319407752,1710718252339,-300.0,0.00028493,5]
[319407753,1710718252348,-150.0,0.00028493,2]
[319407754,1710718252357,-510.0,0.00028493,120]
[319407755,1710718252370,-3901.02,0.00028499,2]
[319407756,1710718252379,-1709.55,0.00028499,2]
[319407757,1710718252388,-4681.61,0.00028499,2]
[319407758,1710718252397,-3050.26,0.00028499,2]
[319407759,1710718252406,-1343.97,0.00028499,2]
[319407760,1710718252416,-9183.96,0.000285,2]
[319407761,1710718252425,-9183.96,0.000285,2]
[319407762,1710718252435,-9183.96,0.000285,2]
[319407763,1710718252445,-9183.96,0.000285,2]
[319407764,1710718252454,-9183.96,0.000285,2]
[319407765,1710718252463,-9183.96,0.000285,2]
[319407766,1710718252473,-9183.96,0.000285,2]
[319407767,1710718252482,-9183.96,0.000285,2]
[319407768,1710718252491,-9183.96,0.000285,2]
[319407769,1710718252501,-9183.96,0.000285,2]
[319407770,1710718252511,-9183.96,0.000285,2]
[319407771,1710718252522,-9183.96,0.000285,2]
[319407772,1710718252531,-9183.96,0.000285,2]
[319407773,1710718252542,-9183.96,0.000285,2]
[319407774,1710718252555,-9183.96,0.000285,2]
[319407775,1710718252565,-9183.96,0.000285,2]
[319407776,1710718252574,-9183.96,0.000285,2]
[319407777,1710718252584,-9183.96,0.000285,2]
[319407778,1710718252594,-9183.96,0.000285,2]
[319407779,1710718252604,-9183.96,0.000285,2]
[319407780,1710718252616,-160.574908,0.00028628,2]
[319407781,1710718252627,-220.730155,0.00028628,2]
[319407782,1710718252636,-180.703076,0.00028628,2]
[319407783,1710718252646,-190.831224,0.00028628,2]
[319407784,1710718252656,-154.12575019,0.00028711,2]
[319407785,1710718252665,-1533.01337417,0.00028715,2]
[319407786,1710718252675,-2214.315,0.00028767,2]
[319407787,1710718252684,-510.0,0.00028767,120]
[319407788,1710718252695,-150.0,0.00028767,2]
[319407789,1710718252705,-152.438655,0.00028767,14]
[319407790,1710718252715,-155.0,0.00028768,2]
[319407791,1710718252725,-1814.766785,0.000288,2]
[319407792,1710718252735,-3446.474166,0.000288,2]
[319407793,1710718252744,-1134.22924,0.000288,2]
[319407794,1710718252754,-1587.920937,0.000288,2]
[319407795,1710718252763,-154.12575019,0.0002882,2]
[319407796,1710718252773,-1200.90489939,0.0002889,2]
[319407797,1710718252783,-1330.473295,0.00028951,2]
[319407798,1710718252793,-200.87548947,0.00029,2]
[319407799,1710718252802,-1900.0,0.00029,3]
[319407800,1710718252813,-1533.01337417,0.00029023,2]
[319407801,1710718252824,-300.0,0.00029041,5]
[319407802,1710718252835,-150.0,0.00029041,2]
[319407803,1710718252849,-510.0,0.00029041,120]
[319407804,1710718252862,-150.0,0.00029053,2]
[319407805,1710718252874,-2188.05632879,0.000292,2]
[319407806,1710718252884,-152.37,0.000292,2]
[319407807,1710718252894,-152.37,0.000292,2]
[319407808,1710718252904,-152.37,0.000292,2]
[319407809,1710718252917,-152.37,0.000292,2]
[319407810,1710718252927,-152.37,0.000292,2]
[319407811,1710718252938,-152.37,0.000292,2]
[319407812,1710718252949,-152.37,0.000292,2]
[319407813,1710718252959,-152.37,0.000292,2]
[319407814,1710718252969,-152.37,0.000292,2]
[319407815,1710718252978,-152.37,0.000292,2]
[319407816,1710718252988,-152.37,0.000292,2]
[319407817,1710718252998,-152.37,0.000292,2]
[319407818,1710718253008,-152.37,0.000292,2]
[319407819,1710718253018,-152.37,0.000292,2]
[319407820,1710718253028,-152.37,0.000292,2]
[319407821,1710718253038,-152.37,0.000292,2]
[319407822,1710718253048,-152.37,0.000292,2]
[319407823,1710718253058,-152.37,0.000292,2]
[319407824,1710718253069,-1330.473295,0.00029202,2]
[319407825,1710718253079,-3000.0,0.000293,2]
[319407826,1710718253089,-1533.01337417,0.000293,2]
[319407827,1710718253098,-510.0,0.00029315,120]
[319407828,1710718253108,-151.08790136,0.00029342,2]
[319407829,1710718253118,-1330.473295,0.00029494,2]
[319407830,1710718253128,-1518.24804029,0.000295,3]
[319407831,1710718253137,-1000.52,0.000295,2]
[319407832,1710718253147,-1000.52,0.000295,2]
[319407833,1710718253157,-1533.01337417,0.00029552,2]
[319407834,1710718253167,-309.82,0.00029575,2]
[319407835,1710718253176,-300.0,0.00029589,5]
[319407836,1710718253185,-150.0,0.00029589,2]
[319407837,1710718253195,-510.0,0.00029589,120]
[319407838,1710718253204,-152.438655,0.00029589,14]
[319407839,1710718253214,-1330.473295,0.0002961,2]
[319407840,1710718253223,-480.38,0.00029777,2]
[319407841,1710718253232,-2268.458481,0.000298,2]
[319407842,1710718253242,-4308.092708,0.000298,2]
[319407843,1710718253253,-1417.786551,0.000298,2]
[319407844,1710718253262,-1984.901171,0.000298,2]
[319407845,1710718253271,-1533.01337417,0.00029811,2]
[319407846,1710718253281,-156.51853804,0.00029826,2]
[319407847,1710718253290,-510.0,0.00029863,120]
[319407848,1710718253300,-1330.473295,0.00029895,2]
[319407849,1710718253311,-389.336264,0.000299,2]
[319407850,1710718253320,-1533.01337417,0.000299,2]
[319407851,1710718253329,-5047.86410616,0.0002999,2]
[319407852,1710718253339,-500.0,0.00029999,2]
[319407853,1710718253348,-3901.02,0.00029999,2]
[319407854,1710718253358,-3901.02,0.00029999,2]
[319407855,1710718253367,-3901.02,0.00029999,2]
[319407856,1710718253377,-3901.02,0.00029999,2]
[319407857,1710718253386,-3901.1,0.00029999,2]
[319407858,1710718253396,-1272.15,0.00029999,2]
[319407859,1710718253406,-500.0,0.00029999,2]
[319407860,1710718253415,-1709.55,0.00029999,2]
[319407861,1710718253425,-1709.55,0.00029999,2]
[319407862,1710718253435,-1709.55,0.00029999,2]
[319407863,1710718253445,-1709.55,0.00029999,2]
[319407864,1710718253455,-1709.61126713,0.00029999,2]
[319407865,1710718253468,-4681.61,0.00029999,2]
[319407866,1710718253478,-4681.61,0.00029999,2]
[319407867,1710718253487,-4681.61,0.00029999,2]
[319407868,1710718253496,-4681.61,0.00029999,2]
[319407869,1710718253505,-4681.76974314,0.00029999,2]
[319407870,1710718253514,-3050.26,0.00029999,2]
[319407871,1710718253523,-3050.26,0.00029999,2]
[319407872,1710718253532,-3050.26,0.00029999,2]
[319407873,1710718253542,-3050.26,0.00029999,2]
[319407874,1710718253553,-3050.33336473,0.00029999,2]
[319407875,1710718253565,-699.21,0.00029999,2]
[319407876,1710718253577,-1021.84,0.00029999,2]
[319407877,1710718253586,-1343.97,0.00029999,2]
[319407878,1710718253598,-1343.97,0.00029999,2]
[319407879,1710718253608,-1343.97,0.00029999,2]
[319407880,1710718253617,-1343.97,0.00029999,2]
[319407881,1710718253627,-1344.17689374,0.00029999,2]
[319407882,1710718253636,-500.0,0.00029999,2]
[319407883,1710718253645,-40484.38910228,0.0003,4]
[319407884,1710718253655,-1569.23351296,0.0003,4]
[319407885,1710718253665,-3869.02610576,0.0003,30]
[319407886,1710718253674,-382.27968543,0.0003,4]
[319407887,1710718253684,-3200.0,0.0003,2]
[319407888,1710718253693,-155.0,0.0003,4]
[319407889,1710718253702,-1000.0,0.0003,20]
[319407890,1710718253711,-155.7058458,0.0003,5]
[319407891,1710718253721,-4949.90606921,0.0003,2]
[319407892,1710718253730,-32945.08594665,0.0003,4]
[319407893,1710718253739,-713.53791425,0.0003,30]
[319407894,1710718253749,-155.20795377,0.0003,4]
[319407895,1710718253758,-246.7988565,0.0003,4]
[319407896,1710718253768,-3000.0,0.0003,3]
[319407897,1710718253942,-155.03497468,0.0003,2]
[319407898,1710718253961,-1200.0,0.0003,31]
[319407899,1710718253970,-484.6459151,0.0003,4]
[319407900,1710718253980,-150.0,0.0003,2]
[319407901,1710718253989,-500.0,0.0003,2]
[319407902,1710718253999,-45233.91366687,0.0003,2]
[319407903,1710718254008,-150.01263341,0.0003,3]
[319407904,1710718254018,-150.0,0.0003,2]
[319407905,1710718254027,-20000.0,0.0003,10]
[319407906,1710718254037,-20000.0,0.0003,10]
[319407907,1710718254047,-20000.0,0.0003,10]
[319407908,1710718254056,-20000.0,0.0003,10]
[319407909,1710718254066,-20000.0,0.0003,10]
[319407910,1710718254076,-20000.0,0.0003,10]
[319407911,1710718254086,-3084.069873,0.0003,10]
[319407912,1710718254096,-205.0,0.0003,2]
[319407913,1710718254106,-152.37,0.0003,2]
[319407914,1710718254116,-152.37,0.0003,2]
[319407915,1710718254126,-152.37,0.0003,2]
[319407916,1710718254136,-152.37,0.0003,2]
[319407917,1710718254146,-152.37,0.0003,2]
[319407918,1710718254155,-152.37,0.0003,2]
[319407919,1710718254165,-152.37,0.0003,2]
[319407920,1710718254174,-152.37,0.0003,2]
[319407921,1710718254184,-152.37,0.0003,2]
[319407922,1710718254194,-210.05691802,0.0003,7]
[319407923,1710718254203,-269.16,0.0003,2]
[319407924,1710718254213,-269.16,0.0003,2]
[319407925,1710718254222,-269.16,0.0003,2]
[319407926,1710718254232,-269.16,0.0003,2]
[319407927,1710718254241,-269.16,0.0003,2]
[319407928,1710718254250,-269.16,0.0003,2]
[319407929,1710718254260,-269.16,0.0003,2]
[319407930,1710718254269,-269.16,0.0003,2]
[319407931,1710718254279,-269.16,0.0003,2]
[319407932,1710718254288,-269.16,0.0003,2]
[319407933,1710718254297,-269.16,0.0003,2]
[319407934,1710718254308,-269.16,0.0003,2]
[319407935,1710718254318,-269.16,0.0003,2]
[319407936,1710718254328,-269.16,0.0003,2]
[319407937,1710718254337,-269.16,0.0003,2]
[319407938,1710718254346,-269.16,0.0003,2]
[319407939,1710718254355,-269.16,0.0003,2]
[319407940,1710718254366,-269.16,0.0003,2]
[319407941,1710718254376,-269.16,0.0003,2]
[319407942,1710718254385,-269.16,0.0003,2]
[319407943,1710718254395,-269.16,0.0003,2]
[319407944,1710718254405,-269.16,0.0003,2]
[319407945,1710718254415,-269.16,0.0003,2]